Cogmind - Beta 16.1 @@@ ROGUE MODE // 2026.04.20 @ 18:20:57 Player: Null_error Result: Destroyed by G-47 Trooper with Particle Gun Performance ------------- Evolutions (1) 500 Regions Visited (2) 400 Robots Destroyed (17) 85 Value Destroyed (416) 416 Prototype IDs (0) 0 Alien Tech Used (0) 0 Bonus (0) 0 TOTAL SCORE: 1401 Bonus ------- None Cogmind --------- Core Integrity 0/400 Matter 282/300 Energy 100/100 System Corruption 0% Temperature Cool (27) Movement Core (350) Ox6 Location -9/Materials Parts ------- > --- POWER (1) -------- (None) > --- PROPULSION (2) --- (None) > --- UTILITY (4) ------ Large Storage Unit Visual Processing Unit Signal Interpreter > --- WEAPON (2) ------- Light Assault Rifle > --- INVENTORY (15) --- Light Ion Engine Compact Wheel Small Storage Unit Weight Redist. System Assault Rifle Light Assault Rifle Peak State ------------ > --- POWER ------------ Ion Engine > --- PROPULSION ------- Wheel Compact Wheel > --- UTILITY ---------- Large Storage Unit Visual Processing Unit Signal Interpreter Seismic Detector > --- WEAPON ----------- Light Assault Rifle Heavy Assault Rifle > --- INVENTORY -------- Light Ion Engine Compact Wheel Small Storage Unit Weight Redist. System Assault Rifle Light Assault Rifle Grenade Launcher [Rating: 11] Favorites ----------- Power Light Ion Engine Engine Light Ion Engine Propulsion Light Treads Treads Light Treads Wheel Wheel Utility Seismic Detector Device Seismic Detector Storage Large Storage Unit Processor Signal Interpreter Weapon Light Assault Rifle Ballistic Gun Light Assault Rifle Launcher Grenade Launcher Build | -11 -10 -9 ------- Run | Yrd Mat Mat Slots Evolved 2 | . . 2 Power . | . . . Propulsion . | . . . Utility 2 | . . 2 Weapon . | . . . Parts Attached 19 | 7 1 11 Power 4 | 1 . 3 Engine 4 | 1 . 3 Core . | . . . Reactor . | . . . Propulsion 4 | 2 . 2 Treads 2 | 2 . . Leg . | . . . Wheel 2 | . . 2 Hover . | . . . Flight . | . . . Utility 5 | 2 1 2 Device 1 | 1 . . Storage 2 | 1 1 . Processor 2 | . . 2 Hackware . | . . . Protection . | . . . Artifact . | . . . Weapon 6 | 2 . 4 Energy Gun . | . . . Energy Cannon . | . . . Ballistic Gun 5 | 2 . 3 Ballistic Cannon . | . . . Launcher 1 | . . 1 Special Weapon . | . . . Impact Weapon . | . . . Slashing Weapon . | . . . Piercing Weapon . | . . . Special Melee Weapon . | . . . Unidentified Prototypes . | . . . Parts Lost 10 | . . 10 Power 2 | . . 2 Propulsion 4 | . . 4 Utility 1 | . . 1 Weapon 3 | . . 3 Highest Loss Streak 7 | . . 7 To Critical Strikes . | . . . Average Backups 5 | 2 5 6 Power . | . 1 . Propulsion 1 | 1 2 1 Utility 1 | . . 1 Weapon 1 | . 1 2 Tool/Special . | . . . Unused Backups 2 | . . 2 Power . | . . . Propulsion 1 | . . 1 Utility 1 | . . 1 Weapon . | . . . Tool/Special . | . . . Average Slot Usage (%) 91 | . 100 84 Engine 8 | . 14 4 Treads 19 | . 28 12 Wheel 1 | . . 2 Device 12 | . 14 10 Storage 12 | . 14 11 Processor 11 | . . 21 Ballistic Gun 24 | . 28 20 Peak Build Rating 11 | 7 7 11 Average Rating 7 | 5 7 8 On Entrance 4 | . 7 7 Avg Prop Armor Cover (%) . | . . . Naked Turns . | . . . Heaviest Build 30 | 12 27 30 Greatest Support 40 | 40 40 40 Greatest Overweight (x) 8 | 1 . 8 Average Overweight (x) . | . . 1 Largest Inventory Capacity 15 | 8 15 15 Average Capacity 12 | 7 9 15 Most Carried 8 | 4 8 8 Average Carried 5 | 2 5 6 Final Capacity 15 | 8 15 15 Final Carried 8 | 4 8 6 Class Distribution -------------------- 100% | Mutant Dominant Class ---------------- Mutant | -10/Materials Mutant | -9/Materials Resources | -11 -10 -9 ----------- Run | Yrd Mat Mat Matter Collected 523 | 152 80 291 Remotely . | . . . Salvage Created 479 | 11 80 388 Parts 36 | 2 9 25 Haulers Intercepted . | . . . Recyclers Shooed 1 | . 1 . Parts Field Recycled . | . . . Retrieved Matter . | . . . Parts Self-Destructed . | . . . Prevented . | . . . Parts Restored . | . . . Kills | -11 -10 -9 ------- Run | Yrd Mat Mat Combat Hostiles Destroyed 11 | . 2 9 Melee 1 | . . 1 Guns 7 | . 2 5 AOE 3 | . . 3 Classes Destroyed 8 | 1 3 4 Builder 2 | . 1 1 Tunneler 1 | 1 . . Recycler 1 | . . 1 Watcher 2 | . 1 1 Swarmer 2 | . . 2 Grunt 6 | . 2 4 Duelist 1 | . . 1 Sentry 2 | . . 2 Best Kill Streak 4 | 1 1 4 Combat Bots Only 3 | . 1 3 Max Kills in Single Turn 2 | 1 1 2 Gunslinging . | . . . Exploded 2 | . . 2 Melee 1 | . . 1 Uniques/NPCs Destroyed . | . . . Combat | -11 -10 -9 -------- Run | Yrd Mat Mat Hostile Shots Fired 135 | . 5 130 Missed 36 | . 3 33 Hits 99 | . 2 97 Melee 6 | . . 6 Projectile 93 | . 2 91 Critical Strikes 6 | . . 6 Damage Taken 1485 | . 23 1462 Core 412 | . . 412 Absorbed by Shields . | . . . Core Remaining (%) 100 | 100 100 . Volleys Fired 60 | 5 12 43 Largest 2 | 2 2 2 Hottest 50 | 40 40 50 Shots Fired 115 | 10 24 81 Gun 111 | 10 24 77 Cannon . | . . . Launcher 4 | . . 4 Special . | . . . Kinetic 111 | 10 24 77 Thermal . | . . . Explosive 4 | . . 4 Electromagnetic . | . . . Robot Hit Streak 18 | 2 7 18 Robot Miss Streak 3 | 1 3 2 Penetration Max . | . . . Secondary Targets 1 | . . 1 Max Gunslinging Chain 1 | . . 1 Shots Hit Robots 80 | 5 15 60 Core Hits 29 | 2 7 20 Critical Kills 1 | . . 1 Critical Parts Destroyed . | . . . Critical Strikes 1 | . . 1 Destroy 1 | . . 1 Melee Attacks . | . . . Impact . | . . . Slashing . | . . . Piercing . | . . . Sneak Attacks . | . . . Combat Hostiles . | . . . Follow-up Attacks . | . . . Damage Inflicted 937 | 51 189 697 Guns 763 | 51 178 534 Cannons . | . . . Explosions 151 | . . 151 Melee . | . . . Ramming 23 | . 11 12 Kinetic 763 | 51 178 534 Thermal . | . . . Explosive 151 | . . 151 Electromagnetic . | . . . Impact . | . . . Slashing . | . . . Piercing . | . . . Highest Corruption 1 | . 1 . Average Corruption 1 | . 1 . Corruption Purged . | . . . Corruption Blocked . | . . . Overload Shots . | . . . Overflow Damage . | . . . Projectiles . | . . . Explosions . | . . . Melee . | . . . Knockbacks . | . . . Impact . | . . . Kinetic . | . . . Secondary . | . . . Self-Inflicted Damage . | . . . Shots . | . . . Rammed 9 | . 4 5 Targets Rammed 11 | . 5 6 Kicked . | . . . Crushed 2 | . 1 1 Highest Temperature 31 | . 6 31 Average Temperature 11 | . 6 12 Received Heat Transfer 597 | . 12 585 Siege Activations . | . . . Martial Activations . | . . . Shielding Activations . | . . . Robots Disrupted . | . . . Combat Hostiles . | . . . Robots Corrupted . | . . . Combat Hostiles . | . . . Parts Fried . | . . . Impact Corruptions . | . . . Robots Melted . | . . . Combat Hostiles . | . . . Parts Melted . | . . . Heat Transferred . | . . . Parts Sabotaged . | . . . Parts Stolen . | . . . Parts Stripped . | . . . Power Chain Reactions . | . . . Alert | -11 -10 -9 ------- Run | Yrd Mat Mat Maximum Alert Level . | . . . Low Security (%) 100 | 100 100 100 Level 1 . | . . . Level 2 . | . . . Level 3 . | . . . Level 4 . | . . . Level 5 . | . . . High Security . | . . . Max Security . | . . . Peak Influence 135 | . 40 135 Initial 3 | . . 3 Average 15 | . 5 28 Influence Increases 424 | 5 88 331 Destroy 0b10 Robot/C 220 | . 40 180 Destroy 0b10 Robot/NC 30 | 5 10 15 Destroy Leader 54 | . 12 42 Successful Hack 26 | . 26 . Destroy Structure 34 | . . 34 Lose Combat Pursuer 60 | . . 60 Influence Decreases 337 | 5 78 254 Entered New Map 7 | . . 7 Time Decay 250 | 5 78 167 Lost Part 80 | . . 80 Squads Dispatched 3 | . 1 2 Investigation . | . . . Extermination . | . . . Reinforcement 3 | . 1 2 Assault . | . . . Garrison . | . . . Intercept . | . . . Searches Triggered . | . . . Construction Impeded . | . . . Haulers Reinforced . | . . . Active Scanning Responses . | . . . Cargo Convoy Interrupts . | . . . Stealth | -11 -10 -9 --------- Run | Yrd Mat Mat Distress Signals . | . . . Communications Jammed . | . . . Distress Signals . | . . . Times Spotted 25 | . 8 17 Peak Tracking Total 7 | . 2 7 Tactical Retreats 4 | . . 4 Traps | -11 -10 -9 ------- Run | Yrd Mat Mat Traps Triggered 1 | . 1 . Indirectly . | . . . Trap Hack Attempts . | . . . Triggered . | . . . Disarmed . | . . . Reprogrammed . | . . . Reused . | . . . Traps Extracted . | . . . Installed . | . . . Triggered . | . . . Machines | -11 -10 -9 ---------- Run | Yrd Mat Mat Machines Disabled . | . . . Max in Single Turn . | . . . Machines Repaired . | . . . Machines Dismantled . | . . . Machines Sabotaged . | . . . Overloaded Fab Kills . | . . . Hacking | -11 -10 -9 --------- Run | Yrd Mat Mat Machines Accessed 2 | . 2 . Terminals 2 | . 2 . Fabricators . | . . . Repair Stations . | . . . Recycling Units . | . . . Scanalyzers . | . . . Garrison Access . | . . . Total Hacks 6 | . 6 . Successful 4 | . 4 . Failed 1 | . 1 . Catastrophic 1 | . 1 . Database Lockouts 1 | . 1 . Manual 7 | . 7 . Terminals 6 | . 6 . Fabricators . | . . . Repair Stations . | . . . Recycling Units . | . . . Scanalyzers . | . . . Garrison Access . | . . . Terminal Hacks 4 | . 4 . Robot Analysis 3 | . 3 . Recall Investigation 1 | . 1 . Fabricator Hacks . | . . . Repair Station Hacks . | . . . Recycling Unit Hacks . | . . . Scanalyzer . | . . . Garrison Access Hacks . | . . . Unauthorized Hacks . | . . . Terminals . | . . . Fabricators . | . . . Repair Stations . | . . . Recycling Units . | . . . Scanalyzers . | . . . Garrison Access . | . . . Data Cores Recovered . | . . . Used . | . . . Hacking Detections 1 | . 1 . Full Trace Events . | . . . Feedback Events . | . . . Feedback Blocked . | . . . Robot Schematics Acquired . | . . . Robots Built . | . . . Authchips . | . . . Time . | . . . Total Robot Build Rating . | . . . Part Schematics Acquired . | . . . Parts Built . | . . . Authchips . | . . . Time . | . . . Total Part Build Rating . | . . . Part Studies Acquired . | . . . Parts Repaired . | . . . Time . | . . . Parts Recycled . | . . . Recycled Matter . | . . . Retrieved Matter . | . . . Retrieved Components . | . . . Parts Scanalyzed . | . . . Part Schematics Acquired . | . . . Parts Damaged . | . . . Bothacking | -11 -10 -9 ------------ Run | Yrd Mat Mat Used RIF Installer . | . . . Robots Hacked . | . . . Non-combat . | . . . Combat . | . . . Robot Hacks Applied . | . . . Relay Couplers Released . | . . . Fabnet Peak Effective % . | . . . Robots Rewired . | . . . Allies Hacked . | . . . Hacks Repelled . | . . . Allies | -11 -10 -9 -------- Run | Yrd Mat Mat Total Allies . | . . . Largest Group . | . . . Highest-Rated Group . | . . . Highest-Rated Ally . | . . . Total Orders . | . . . Ally Attacks . | . . . Total Damage . | . . . Kills . | . . . Allies Corrupted . | . . . Allies Melted . | . . . Intel | -11 -10 -9 ------- Run | Yrd Mat Mat Active Infowar (turns) 862 | 9 395 458 Optics 457 | . . 457 Seismic 856 | 9 395 452 Robot Analysis Total 3 | . 3 . Derelict Logs Recovered . | . . . Drone Launches . | . . . Drone Recoveries . | . . . Exploration | -11 -10 -9 ------------- Run | Yrd Mat Mat Turns Passed 952 | 99 395 458 Spaces Moved 430 | 48 212 170 Core 12 | 5 . 7 Treads 370 | 43 212 115 Legs . | . . . Wheels 48 | . . 48 Hover . | . . . Flight . | . . . Fastest Speed 50 | 50 160 105 Average Speed 166 | 149 160 180 Slowest Speed 450 | 160 160 450 Overloaded Moves . | . . . Propulsion Burnouts . | . . . Robots Hopped . | . . . Potential Cave-ins . | . . . Cave-ins Triggered . | . . . Exploration Rate (%) 21 | 3 40 22 Regions Visited 2 Branch Regions . Pre-discovered Areas . | . . . Known Exits Taken . | . . . Unknown Exits Taken 2 | 1 1 . Scrap Searched . | . . . Spaces Dug . | . . . Terrain Destroyed 31 | . . 31 Melee . | . . . Projectile . | . . . AOE 31 | . . 31 Terrain Rammed . | . . . Walls Destroyed . | . . . Machines Disabled . | . . . Actions | -11 -10 -9 --------- Run | Yrd Mat Mat Total 553 | 63 243 247 Wait 26 | . 11 15 Move 428 | 47 211 170 Hop . | . . . Pick Up 8 | 4 3 1 Fast Attach 10 | 7 . 3 Attach 6 | . . 6 Detach . | . . . Swap 4 | . 1 3 Drop . | . . . Fire 60 | 5 12 43 Melee . | . . . Ram . | . . . Kick . | . . . Crush 11 | . 5 6 Escape Stasis . | . . . Rewire . | . . . Trap . | . . . Miscellaneous . | . . . Route ------- -11/Scrapyard -10/Materials (discovered 2 exits: [*Mat] / [*Min]) -9/Materials (discovered 1 exit: *Min) History --------- Turn | Location | Event 2 | -11/Scrapyard | Met Revision 17 3 | -11/Scrapyard | Discovered new exit (range 15) 100 | -11/Scrapyard | Entered Materials 191 | -10/Materials | Central database locked down 302 | -10/Materials | Build established: Mutant 372 | -10/Materials | Discovered new exit (range 7) 484 | -10/Materials | Discovered new exit (range 4) 495 | -10/Materials | Entered another Materials area 495 | -9/Materials | Evolved 2 slots: Utility x2 890 | -9/Materials | Discovered new exit (range 5) 894 | -9/Materials | Identified exit to Mines 902 | -9/Materials | Core integrity fell below 50% 938 | -9/Materials | Core integrity fell below 20% 953 | -9/Materials | Destroyed by G-47 Trooper with Particle Gun Last Messages --------------- 00919_ K-01 Serf collects debris. 00920_ U-05 Engineer lays Concrete. 00921_ U-05 Engineer builds a Wall. 00922_ The unstable cave ceiling collapses. 00923_ K-01 Serf collects debris. 00925_ K-01 Serf destroyed. 00925_ U-05 Engineer lays Concrete. 00933_ U-05 Engineer destroyed. 00934_ Grenade Launcher destroyed. 00937_ O-16 Technician: "IFF HANDSHAKE FAILED. SECURING TERMINAL." 00938_ Acquired Lgt. Assault Rifle. 00939_ Acquired 25 matter. 00940_ ALERT: Hostiles spotted, dispatching reinforcements to Terminal M003. 00942_ K-01 Serf collects debris. 00942_ Lgt. Assault Rifle destroyed. 00943_ Com. Wheel destroyed. 00947_ Seismic Detector destroyed. 00949_ Critical hit (Burn: +37). Map ----- +----------------------------------------------------+ | | | | | | | | | | | | | | | | | | | | | | | | | | | | | | | | | ???????????????#############?????????????????????? | | ???????????????# #?????????????????????? | | ???????????????# #?????????????????????? | | ???????????????# #?????????????????????? | | ???????????????# #?????????????????????? | | ???????????????# #?????????????????????? | | ???????????????# #?????????????????????? | | ???????????????# = #?????????????????????? | | ???????????????#####= # ##### #????????????? | | ??????????????##### %% @ #???????? | | ??????????????# # [%=#######+###??????????????? | | ??????????????#"" g #????????????????????????? | | ????###########"T # ##????????????????????????? | | ????# #"" ##????????????????????????? | | ????# # # #?????????????????????????? | | ????# ?# # #????????????????????????? | | ##### """ """?# #????????????????????????? | | # """ """?# %= ##????????????????????????? | | !!*+ """ """?#### [ ????????????????????????? | | # #??# # ???????????????????????? | | ### # #??# #?"??????????????????????? | | ??#+###########?? > ??"?????????????????????? | | ??#* =[ # #### ! ?? ????????????????????? | | ??#="""" # # %= ##??#???????????????????? | | ??# """" # """ ## # ???????????????????????? | | ??# """" # """ ### ### ??????????????????????? | | ??# # """ ### ### "??????????????????????? | | ??# """" # # # ""?????????????????????? | | ??# """" # """ # #?"??????????????????????? | | ??# """" # """ + +????????????????????????? | | ??# [# """ # #????????????????????????? | | #######/####!=%= # #????????????????????????? | | # % /% !"""## ##????????????????????????? | | # ###* R"## #?????????????????????????? | +----------------------------------------------------+ Best States ------------- Heat Dissipation 28 Energy Generation 10 Energy Capacity 250 Matter Stores 300 Matter Capacity 300 Sight Range 18 Terrain Scan Density 10 Evasion (%) 40 Recoil Reduction 2 Item Schematics ----------------- None Robot Schematics ------------------ None Fabricated ------------ Nothing Repaired ---------- Nothing Studied --------- None Alien Tech Used ----------------- None Achievements -------------- None Challenges ------------ None Game ------ Seed QuantumTitaniumClaymores Manual? 0 Play Time 00:11:17 Cumulative 80.1 hours Start 2026.04.20 @ 18:13:19 End 2026.04.20 @ 18:20:57 Sessions 1 Manual Loads 0 Difficulty Rogue Special Mode None Game No. 102 Rogue 102 Adventurer 0 Explorer 0 Win Type - Total 1 Types 1/0/0/0/0/0/0/0/0/0 Lore% 27 Gallery% 45 Achievement% 22 Wizard Run 0 Options --------- Layout 1 ASCII 0 Keyboard 1 Movement Numpad Keybinds 0 Fullscreen 1 Font 24/Smallcaps Map View 50x35 Zoom Use 0% Tactical HUD 1 Map Filters NONE Filters LOW_CONTRAST(5,10,15) Steam 1 RUN: e4d0ab3e-41d2-49e5-8350-f4e033f3b5b7